[Event "*** Titled Tuesday Blitz"]
[Site "Chess.com"]
[Date "2020.11.24"]
[Round "6"]
[White "sara_khm"]
[Black "mc4chess"]
[Result "1-0"]
[WhiteElo "2581"]
[BlackElo "2456"]
[TimeControl "180+1"]
[EndTime "11:18:12 PST"]
[Termination "sara_khm won by resignation"]

1. Nf3 {[%clk 0:03:00.9]} 1... c5 {[%clk 0:02:56.9]} 2. g3 {[%clk 0:02:59]} 2...
g6 {[%clk 0:02:57]} 3. Bg2 {[%clk 0:02:59.9]} 3... Bg7 {[%clk 0:02:56.8]} 4. O-O
{[%clk 0:03:00.8]} 4... Nc6 {[%clk 0:02:56.8]} 5. c3 {[%clk 0:03:01.7]} 5... Nf6
{[%clk 0:02:54.5]} 6. d4 {[%clk 0:03:02.6]} 6... cxd4 {[%clk 0:02:54.2]} 7. cxd4
{[%clk 0:03:03.5]} 7... d5 {[%clk 0:02:54.7]} 8. Nc3 {[%clk 0:02:57.9]} 8... Ne4
{[%clk 0:02:47.2]} 9. Ng5 {[%clk 0:02:56.2]} 9... Nxc3 {[%clk 0:02:44.6]} 10.
bxc3 {[%clk 0:02:56]} 10... O-O {[%clk 0:02:44.8]} 11. e4 {[%clk 0:02:52.1]}
11... dxe4 {[%clk 0:02:38.3]} 12. Nxe4 {[%clk 0:02:51.8]} 12... e5 {[%clk
0:02:09]} 13. d5 {[%clk 0:02:48.4]} 13... Na5 {[%clk 0:02:09.1]} 14. Ba3 {[%clk
0:02:46.2]} 14... Re8 {[%clk 0:02:01.6]} 15. Nd6 {[%clk 0:02:45.7]} 15... Bf8
{[%clk 0:01:59]} 16. Nxe8 {[%clk 0:02:45.3]} 16... Bxa3 {[%clk 0:01:58.6]} 17.
Qa4 {[%clk 0:02:43.5]} 17... Be7 {[%clk 0:01:28.9]} 18. d6 {[%clk 0:02:42.6]}
18... Bg5 {[%clk 0:01:28.2]} 19. Nc7 {[%clk 0:02:36.9]} 1-0

[Event "*** Titled Tuesday Blitz"]
[Site "Chess.com"]
[Date "2020.11.24"]
[Round "6"]
[White "keepitcoming"]
[Black "Nachsueb"]
[Result "0-1"]
[WhiteElo "2363"]
[BlackElo "2189"]
[TimeControl "180+1"]
[EndTime "11:18:51 PST"]
[Termination "Nachsueb won by resignation"]

1. d4 {[%clk 0:03:00.9]} 1... Nf6 {[%clk 0:02:59.3]} 2. c4 {[%clk 0:03:01.1]}
2... c5 {[%clk 0:02:57.9]} 3. d5 {[%clk 0:03:00.9]} 3... e6 {[%clk 0:02:58.2]}
4. Nc3 {[%clk 0:03:00.8]} 4... exd5 {[%clk 0:02:57.9]} 5. cxd5 {[%clk
0:03:01.7]} 5... d6 {[%clk 0:02:58.3]} 6. e4 {[%clk 0:03:02.1]} 6... g6 {[%clk
0:02:58.8]} 7. f3 {[%clk 0:03:00.9]} 7... Bg7 {[%clk 0:02:58.1]} 8. Kf2 {[%clk
0:03:00.4]} 8... O-O {[%clk 0:02:43.8]} 9. Bd3 {[%clk 0:02:54]} 9... a6 {[%clk
0:02:38.6]} 10. a4 {[%clk 0:02:53.3]} 10... Nbd7 {[%clk 0:02:38.6]} 11. Nge2
{[%clk 0:02:38.1]} 11... Ne5 {[%clk 0:02:33.8]} 12. Rf1 {[%clk 0:02:34.2]} 12...
c4 {[%clk 0:02:29]} 13. Bc2 {[%clk 0:02:33.5]} 13... Qb6+ {[%clk 0:02:09.2]} 14.
Be3 {[%clk 0:02:23.4]} 14... Neg4+ {[%clk 0:02:07.7]} 15. fxg4 {[%clk
0:02:12.1]} 15... Nxg4+ {[%clk 0:02:08.5]} 16. Kg1 {[%clk 0:01:27.8]} 16... Nxe3
{[%clk 0:02:04.8]} 17. a5 {[%clk 0:01:18.5]} 17... Qa7 {[%clk 0:02:02.4]} 0-1

[Event "*** Titled Tuesday Blitz"]
[Site "Chess.com"]
[Date "2020.11.24"]
[Round "6"]
[White "sasko1234"]
[Black "SpasKozhuharov"]
[Result "1-0"]
[WhiteElo "2483"]
[BlackElo "2665"]
[TimeControl "180+1"]
[EndTime "11:19:41 PST"]
[Termination "sasko1234 won by resignation"]

1. Nf3 {[%clk 0:03:00.9]} 1... d5 {[%clk 0:02:59.1]} 2. d4 {[%clk 0:03:00.2]}
2... Nf6 {[%clk 0:02:58.5]} 3. Bf4 {[%clk 0:03:00]} 3... c5 {[%clk 0:02:58.1]}
4. c3 {[%clk 0:02:59.5]} 4... Qb6 {[%clk 0:02:55.9]} 5. Qb3 {[%clk 0:02:58.3]}
5... Nc6 {[%clk 0:02:51.7]} 6. e3 {[%clk 0:02:57.5]} 6... c4 {[%clk 0:02:51.7]}
7. Qc2 {[%clk 0:02:57]} 7... Bf5 {[%clk 0:02:51.4]} 8. Qc1 {[%clk 0:02:56.3]}
8... e6 {[%clk 0:02:49.6]} 9. h3 {[%clk 0:02:55.9]} 9... h6 {[%clk 0:02:48.9]}
10. Be2 {[%clk 0:02:55.7]} 10... Qd8 {[%clk 0:02:49]} 11. O-O {[%clk 0:02:54.4]}
11... b5 {[%clk 0:02:49.2]} 12. Nbd2 {[%clk 0:02:53.4]} 12... Be7 {[%clk
0:02:44.3]} 13. Ne5 {[%clk 0:02:50.6]} 13... Nxe5 {[%clk 0:02:43.1]} 14. Bxe5
{[%clk 0:02:48.9]} 14... O-O {[%clk 0:02:43.5]} 15. Bd1 {[%clk 0:02:46.4]} 15...
b4 {[%clk 0:02:40.4]} 16. Bc2 {[%clk 0:02:45]} 16... bxc3 {[%clk 0:02:39.7]} 17.
bxc3 {[%clk 0:02:44.4]} 17... Qa5 {[%clk 0:02:30.4]} 18. Bxf5 {[%clk 0:02:43.1]}
18... exf5 {[%clk 0:02:31.3]} 19. Qc2 {[%clk 0:02:39.8]} 19... Ne4 {[%clk
0:02:29.3]} 20. Nxe4 {[%clk 0:02:28.6]} 20... fxe4 {[%clk 0:02:30.2]} 21. Rfb1
{[%clk 0:02:15.7]} 21... Rfd8 {[%clk 0:02:13.9]} 22. a4 {[%clk 0:02:11.1]} 22...
a6 {[%clk 0:02:10.6]} 23. Rb7 {[%clk 0:02:06.3]} 23... Bd6 {[%clk 0:02:10.3]}
24. Rab1 {[%clk 0:01:52]} 24... Bxe5 {[%clk 0:02:03.5]} 25. dxe5 {[%clk
0:01:51.5]} 25... Re8 {[%clk 0:02:02.6]} 26. Qe2 {[%clk 0:01:38.1]} 26... Qxc3
{[%clk 0:01:57]} 27. Qh5 {[%clk 0:01:36.9]} 27... Qxe5 {[%clk 0:01:45.6]} 28.
Qxf7+ {[%clk 0:01:35.3]} 28... Kh8 {[%clk 0:01:45]} 29. R1b6 {[%clk 0:01:30.3]}
29... Rab8 {[%clk 0:01:30.8]} 30. Rxh6+ {[%clk 0:01:24.8]} 1-0

[Event "*** Titled Tuesday Blitz"]
[Site "Chess.com"]
[Date "2020.11.24"]
[Round "6"]
[White "lucachess49"]
[Black "FearNoEvil12"]
[Result "1-0"]
[WhiteElo "2338"]
[BlackElo "2147"]
[TimeControl "180+1"]
[EndTime "11:19:41 PST"]
[Termination "lucachess49 won by resignation"]

1. d4 {[%clk 0:03:00.6]} 1... b5 {[%clk 0:02:58.2]} 2. e4 {[%clk 0:02:54.4]}
2... a6 {[%clk 0:02:58.4]} 3. Bd3 {[%clk 0:02:53.5]} 3... Bb7 {[%clk 0:02:58.8]}
4. Nd2 {[%clk 0:02:51.3]} 4... e6 {[%clk 0:02:59]} 5. Ngf3 {[%clk 0:02:50.2]}
5... Nf6 {[%clk 0:02:57.9]} 6. O-O {[%clk 0:02:46.4]} 6... d6 {[%clk 0:02:58.2]}
7. a4 {[%clk 0:02:33.7]} 7... b4 {[%clk 0:02:56.4]} 8. c3 {[%clk 0:02:30.2]}
8... bxc3 {[%clk 0:02:54.4]} 9. bxc3 {[%clk 0:02:30.7]} 9... Nbd7 {[%clk
0:02:54.8]} 10. Re1 {[%clk 0:02:21.9]} 10... Rg8 {[%clk 0:02:53.7]} 11. Nc4
{[%clk 0:02:20.5]} 11... g5 {[%clk 0:02:47.1]} 12. Na5 {[%clk 0:02:17.3]} 12...
Rb8 {[%clk 0:02:46.1]} 13. Nxb7 {[%clk 0:02:15.6]} 13... Rxb7 {[%clk 0:02:46]}
14. Bxa6 {[%clk 0:02:16.3]} 14... Ra7 {[%clk 0:02:44.8]} 15. Bb5 {[%clk
0:02:13.3]} 15... g4 {[%clk 0:02:44.2]} 16. Nd2 {[%clk 0:02:11.9]} 16... h5
{[%clk 0:02:42.1]} 17. Nc4 {[%clk 0:02:08.8]} 17... Nh7 {[%clk 0:02:35.2]} 18.
a5 {[%clk 0:01:57.9]} 18... Ng5 {[%clk 0:02:28.5]} 19. Bxg5 {[%clk 0:01:39.3]}
19... Qxg5 {[%clk 0:02:26.7]} 20. Qa4 {[%clk 0:01:39.1]} 20... c6 {[%clk
0:02:14.6]} 21. Bxc6 {[%clk 0:01:37.6]} 21... g3 {[%clk 0:02:13]} 22. hxg3
{[%clk 0:01:33.9]} 22... h4 {[%clk 0:02:12]} 23. Bxd7+ {[%clk 0:01:31.2]} 23...
Rxd7 {[%clk 0:02:10.7]} 24. Nb6 {[%clk 0:01:31.4]} 24... Ke7 {[%clk 0:02:09.7]}
25. Qxd7+ {[%clk 0:01:30.6]} 25... Kf6 {[%clk 0:02:09.7]} 26. e5+ {[%clk
0:01:31]} 26... Kg6 {[%clk 0:02:04.6]} 27. Re3 {[%clk 0:01:27]} 27... Bh6 {[%clk
0:01:56.6]} 28. gxh4 {[%clk 0:01:22.3]} 28... Qxh4 {[%clk 0:01:51.9]} 29. Rg3+
{[%clk 0:01:13.1]} 29... Kh7 {[%clk 0:01:51.5]} 30. Qxf7+ {[%clk 0:01:11.2]}
30... Rg7 {[%clk 0:01:48.1]} 31. Rxg7+ {[%clk 0:01:09.4]} 31... Bxg7 {[%clk
0:01:47.9]} 32. Nd7 {[%clk 0:01:09.1]} 1-0

[Event "*** Titled Tuesday Blitz"]
[Site "Chess.com"]
[Date "2020.11.24"]
[Round "6"]
[White "HanSchut"]
[Black "JozefKneht"]
[Result "0-1"]
[WhiteElo "2202"]
[BlackElo "2364"]
[TimeControl "180+1"]
[EndTime "11:19:50 PST"]
[Termination "JozefKneht won by resignation"]

1. e4 {[%clk 0:03:00.9]} 1... c5 {[%clk 0:02:56.3]} 2. Nf3 {[%clk 0:02:42.9]}
2... d6 {[%clk 0:02:55.7]} 3. d4 {[%clk 0:02:42.7]} 3... cxd4 {[%clk 0:02:55.6]}
4. Nxd4 {[%clk 0:02:43.6]} 4... Nf6 {[%clk 0:02:55.4]} 5. f3 {[%clk 0:02:43.9]}
5... e5 {[%clk 0:02:47.4]} 6. Bb5+ {[%clk 0:02:43.7]} 6... Bd7 {[%clk
0:02:45.2]} 7. Bxd7+ {[%clk 0:02:43.6]} 7... Qxd7 {[%clk 0:02:45]} 8. Nf5 {[%clk
0:02:44.1]} 8... d5 {[%clk 0:02:45.5]} 9. Bg5 {[%clk 0:02:44.6]} 9... dxe4
{[%clk 0:02:44.1]} 10. Bxf6 {[%clk 0:02:45.1]} 10... Qxd1+ {[%clk 0:02:42]} 11.
Kxd1 {[%clk 0:02:46]} 11... gxf6 {[%clk 0:02:41.9]} 12. fxe4 {[%clk 0:02:46.6]}
12... Nd7 {[%clk 0:02:39.3]} 13. c3 {[%clk 0:02:45]} 13... O-O-O {[%clk
0:02:30.4]} 14. Kc2 {[%clk 0:02:41.4]} 14... Nc5 {[%clk 0:02:30]} 15. Nd2 {[%clk
0:02:32.8]} 15... h5 {[%clk 0:02:30]} 16. Rad1 {[%clk 0:02:28.1]} 16... Bh6
{[%clk 0:02:29.8]} 17. Rhe1 {[%clk 0:02:27.5]} 17... h4 {[%clk 0:02:21.2]} 18.
Re2 {[%clk 0:02:11.7]} 18... Bf4 {[%clk 0:02:18.7]} 19. g3 {[%clk 0:02:07.9]}
19... hxg3 {[%clk 0:02:17.7]} 20. hxg3 {[%clk 0:02:08.4]} 20... Bxd2 {[%clk
0:02:15]} 21. Rdxd2 {[%clk 0:02:05.9]} 21... Rxd2+ {[%clk 0:02:13.4]} 22. Kxd2
{[%clk 0:02:06.8]} 22... Kc7 {[%clk 0:02:13.5]} 23. Ne7 {[%clk 0:01:54.9]} 23...
Kd7 {[%clk 0:02:12.4]} 24. Nd5 {[%clk 0:01:51.4]} 24... Ke6 {[%clk 0:02:12.5]}
25. b4 {[%clk 0:01:48.9]} 25... Nxe4+ {[%clk 0:02:08.4]} 26. Rxe4 {[%clk
0:01:45.9]} 26... Kxd5 {[%clk 0:02:06.8]} 27. Rg4 {[%clk 0:01:46.2]} 27... f5
{[%clk 0:02:04]} 28. Rg7 {[%clk 0:01:43.6]} 28... Ke4 {[%clk 0:01:59.8]} 29.
Rxf7 {[%clk 0:01:29.4]} 29... Rh2+ {[%clk 0:01:55.2]} 30. Kc1 {[%clk 0:01:29.5]}
30... Rg2 {[%clk 0:01:52.9]} 31. Rg7 {[%clk 0:01:22.6]} 31... b5 {[%clk
0:01:51.9]} 32. a4 {[%clk 0:01:21.7]} 32... bxa4 {[%clk 0:01:46.3]} 33. c4
{[%clk 0:01:22.1]} 33... Kd3 {[%clk 0:01:44]} 34. c5 {[%clk 0:01:22.2]} 34...
Kc3 {[%clk 0:01:43]} 35. Kb1 {[%clk 0:01:11]} 35... Kb3 {[%clk 0:01:41.5]} 0-1

[Event "*** Titled Tuesday Blitz"]
[Site "Chess.com"]
[Date "2020.11.24"]
[Round "6"]
[White "GameOverBro"]
[Black "anemih"]
[Result "1-0"]
[WhiteElo "2509"]
[BlackElo "2341"]
[TimeControl "180+1"]
[EndTime "11:19:57 PST"]
[Termination "GameOverBro won by resignation"]

1. e4 {[%clk 0:02:59.3]} 1... e5 {[%clk 0:02:59.7]} 2. Nf3 {[%clk 0:02:59.2]}
2... Nc6 {[%clk 0:02:59.8]} 3. Bb5 {[%clk 0:02:59.2]} 3... g6 {[%clk 0:02:59.7]}
4. h4 {[%clk 0:02:58]} 4... Bg7 {[%clk 0:02:56.6]} 5. h5 {[%clk 0:02:58]} 5...
d6 {[%clk 0:02:56.1]} 6. d3 {[%clk 0:02:56.2]} 6... Be6 {[%clk 0:02:55.1]} 7.
Nc3 {[%clk 0:02:54.6]} 7... Qd7 {[%clk 0:02:54.3]} 8. Nd5 {[%clk 0:02:52.1]}
8... h6 {[%clk 0:02:52.5]} 9. hxg6 {[%clk 0:02:51.3]} 9... fxg6 {[%clk
0:02:52.4]} 10. Nh4 {[%clk 0:02:50.8]} 10... Bf7 {[%clk 0:02:44.7]} 11. c3
{[%clk 0:02:42.2]} 11... a6 {[%clk 0:02:36.2]} 12. Qa4 {[%clk 0:02:42]} 12...
Nf6 {[%clk 0:02:29.5]} 13. Nb4 {[%clk 0:02:35.7]} 13... axb5 {[%clk 0:02:11.7]}
14. Qxa8+ {[%clk 0:02:34.5]} 14... Ke7 {[%clk 0:02:12.1]} 15. Qxb7 {[%clk
0:02:32.2]} 15... Nxb4 {[%clk 0:02:10.5]} 16. cxb4 {[%clk 0:02:33.1]} 16... d5
{[%clk 0:02:03.1]} 17. Be3 {[%clk 0:02:28.3]} 17... d4 {[%clk 0:02:01.3]} 18.
Bd2 {[%clk 0:02:26.2]} 18... Ne8 {[%clk 0:01:52.7]} 19. Rc1 {[%clk 0:02:21.4]}
19... Kf8 {[%clk 0:01:31.6]} 20. b3 {[%clk 0:02:06.3]} 20... Kg8 {[%clk
0:01:31.3]} 21. Rc5 {[%clk 0:02:03.1]} 21... Kh7 {[%clk 0:01:29.3]} 22. Qxb5
{[%clk 0:02:02.5]} 22... Qg4 {[%clk 0:01:27.8]} 23. Rxe5 {[%clk 0:01:53.1]}
23... Bf6 {[%clk 0:01:23.1]} 24. Nf3 {[%clk 0:01:35.7]} 24... Qxg2 {[%clk
0:01:16.4]} 25. Rxh6+ {[%clk 0:01:35.4]} 25... Kg7 {[%clk 0:01:15.2]} 26. Rxh8
{[%clk 0:01:32.8]} 26... Qxf3 {[%clk 0:01:06.5]} 27. Rexe8 {[%clk 0:01:28.6]}
27... Bxe8 {[%clk 0:01:03.8]} 28. Qxe8 {[%clk 0:01:25.3]} 1-0

[Event "*** Titled Tuesday Blitz"]
[Site "Chess.com"]
[Date "2020.11.24"]
[Round "6"]
[White "rududuyk"]
[Black "Loy_Konstantin"]
[Result "1-0"]
[WhiteElo "2192"]
[BlackElo "2378"]
[TimeControl "180+1"]
[EndTime "11:19:57 PST"]
[Termination "rududuyk won by resignation"]

1. e4 {[%clk 0:03:00.9]} 1... c5 {[%clk 0:02:59.9]} 2. Nc3 {[%clk 0:03:00.4]}
2... d6 {[%clk 0:02:59.7]} 3. f4 {[%clk 0:03:00.2]} 3... g6 {[%clk 0:02:59.7]}
4. Nf3 {[%clk 0:03:00.6]} 4... Bg7 {[%clk 0:02:59.9]} 5. Bc4 {[%clk 0:03:01.1]}
5... Nc6 {[%clk 0:02:59.3]} 6. d3 {[%clk 0:03:01.5]} 6... e6 {[%clk 0:02:58.7]}
7. O-O {[%clk 0:03:01.8]} 7... Nge7 {[%clk 0:02:58.1]} 8. Qe1 {[%clk 0:03:01.6]}
8... O-O {[%clk 0:02:56.9]} 9. f5 {[%clk 0:03:01.2]} 9... exf5 {[%clk
0:02:53.9]} 10. Qh4 {[%clk 0:02:59.5]} 10... Na5 {[%clk 0:02:50.7]} 11. Bg5
{[%clk 0:02:54.1]} 11... Re8 {[%clk 0:02:35.1]} 12. Nd5 {[%clk 0:02:45.3]} 12...
Nac6 {[%clk 0:02:04.9]} 13. Nf6+ {[%clk 0:02:42.6]} 13... Bxf6 {[%clk
0:01:58.1]} 14. Bxf6 {[%clk 0:02:43.5]} 14... h5 {[%clk 0:01:58]} 15. Qg5 {[%clk
0:02:42.6]} 15... Kh7 {[%clk 0:01:51.4]} 16. Bxf7 {[%clk 0:02:42]} 16... Rf8
{[%clk 0:01:51.5]} 17. Bxg6+ {[%clk 0:02:39.8]} 17... Nxg6 {[%clk 0:01:51.4]}
18. Bxd8 {[%clk 0:02:39.1]} 18... Nxd8 {[%clk 0:01:51.2]} 19. Qxh5+ {[%clk
0:02:36.8]} 19... Kg7 {[%clk 0:01:49.8]} 20. exf5 {[%clk 0:02:25.2]} 20... Rxf5
{[%clk 0:01:38.8]} 21. Ng5 {[%clk 0:02:23.1]} 21... Nf8 {[%clk 0:01:11.7]} 22.
g4 {[%clk 0:02:01]} 22... Rxf1+ {[%clk 0:00:44.6]} 23. Rxf1 {[%clk 0:02:01.9]}
23... Be6 {[%clk 0:00:44.6]} 24. Rf6 {[%clk 0:01:51.5]} 1-0

[Event "*** Titled Tuesday Blitz"]
[Site "Chess.com"]
[Date "2020.11.24"]
[Round "6"]
[White "CheckThis4"]
[Black "ljuks68"]
[Result "1-0"]
[WhiteElo "2558"]
[BlackElo "2400"]
[TimeControl "180+1"]
[EndTime "11:20:06 PST"]
[Termination "CheckThis4 won by resignation"]

1. d4 {[%clk 0:03:00.9]} 1... d5 {[%clk 0:02:59.7]} 2. c4 {[%clk 0:02:59.4]}
2... c6 {[%clk 0:02:59.9]} 3. Nc3 {[%clk 0:02:59.3]} 3... Nf6 {[%clk 0:03:00.2]}
4. Nf3 {[%clk 0:02:59.5]} 4... dxc4 {[%clk 0:03:00.3]} 5. e4 {[%clk 0:02:59.2]}
5... b5 {[%clk 0:02:59.9]} 6. Be2 {[%clk 0:02:59.1]} 6... b4 {[%clk 0:02:56.5]}
7. Na4 {[%clk 0:02:58.3]} 7... Nxe4 {[%clk 0:02:56.4]} 8. Bxc4 {[%clk
0:02:58.2]} 8... Bg4 {[%clk 0:02:45.7]} 9. Bxf7+ {[%clk 0:02:29.7]} 9... Kxf7
{[%clk 0:02:45.2]} 10. Ne5+ {[%clk 0:02:29.8]} 10... Kg8 {[%clk 0:02:43.6]} 11.
Qxg4 {[%clk 0:02:25.5]} 11... Qd5 {[%clk 0:02:38]} 12. O-O {[%clk 0:02:19.2]}
12... Nf6 {[%clk 0:02:37.7]} 13. Qc8 {[%clk 0:02:13.4]} 13... c5 {[%clk
0:02:16.4]} 14. Nxc5 {[%clk 0:01:51]} 14... Nbd7 {[%clk 0:02:13.7]} 15. Qc7
{[%clk 0:01:50]} 15... Nb6 {[%clk 0:01:49.6]} 16. Be3 {[%clk 0:01:34.7]} 16...
Ne8 {[%clk 0:01:41.7]} 17. Qb7 {[%clk 0:01:30.9]} 17... Qxb7 {[%clk 0:01:40.7]}
18. Nxb7 {[%clk 0:01:31.8]} 18... Rb8 {[%clk 0:01:39.2]} 19. Nc5 {[%clk
0:01:29.4]} 19... Nd5 {[%clk 0:01:35.5]} 20. Rac1 {[%clk 0:01:28]} 20... Nd6
{[%clk 0:01:34.1]} 21. Ne6 {[%clk 0:01:22.9]} 21... g6 {[%clk 0:01:28.9]} 22.
Nd7 {[%clk 0:01:22.2]} 22... Ra8 {[%clk 0:01:13.7]} 23. Ndxf8 {[%clk 0:01:18.1]}
23... Rxf8 {[%clk 0:01:13.4]} 24. Nxf8 {[%clk 0:01:19]} 24... Kxf8 {[%clk
0:01:13.7]} 25. Rc5 {[%clk 0:01:16.5]} 25... e6 {[%clk 0:01:11.7]} 26. Rc6
{[%clk 0:01:08.7]} 26... Ke7 {[%clk 0:01:11.4]} 27. Ra6 {[%clk 0:01:08.2]} 1-0

[Event "*** Titled Tuesday Blitz"]
[Site "Chess.com"]
[Date "2020.11.24"]
[Round "6"]
[White "Fortitudine"]
[Black "IriBu"]
[Result "0-1"]
[WhiteElo "2357"]
[BlackElo "2510"]
[TimeControl "180+1"]
[EndTime "11:20:14 PST"]
[Termination "IriBu won by resignation"]

1. c4 {[%clk 0:03:00.9]} 1... Nf6 {[%clk 0:02:59.4]} 2. g3 {[%clk 0:02:55.1]}
2... g6 {[%clk 0:02:58.5]} 3. Bg2 {[%clk 0:02:51.8]} 3... Bg7 {[%clk 0:02:58.7]}
4. Nc3 {[%clk 0:02:52.5]} 4... O-O {[%clk 0:02:58.1]} 5. e4 {[%clk 0:02:53.1]}
5... d6 {[%clk 0:02:58]} 6. d3 {[%clk 0:02:52.6]} 6... c5 {[%clk 0:02:57.1]} 7.
Nge2 {[%clk 0:02:52.5]} 7... Nc6 {[%clk 0:02:57.3]} 8. O-O {[%clk 0:02:52.4]}
8... Nd4 {[%clk 0:02:57.5]} 9. Nxd4 {[%clk 0:02:49]} 9... cxd4 {[%clk
0:02:58.4]} 10. Ne2 {[%clk 0:02:49.5]} 10... Ne8 {[%clk 0:02:56.6]} 11. Bd2
{[%clk 0:02:42]} 11... a5 {[%clk 0:02:55.7]} 12. b3 {[%clk 0:02:36.6]} 12... Nc7
{[%clk 0:02:54.9]} 13. a3 {[%clk 0:02:34.6]} 13... Bg4 {[%clk 0:02:51.8]} 14. f3
{[%clk 0:02:32.9]} 14... Be6 {[%clk 0:02:48]} 15. b4 {[%clk 0:02:32.5]} 15...
axb4 {[%clk 0:02:43.8]} 16. axb4 {[%clk 0:02:33.4]} 16... Qd7 {[%clk 0:02:41.4]}
17. Qc2 {[%clk 0:02:20.3]} 17... b5 {[%clk 0:02:39.2]} 18. Rxa8 {[%clk
0:02:02.2]} 18... Rxa8 {[%clk 0:02:38]} 19. cxb5 {[%clk 0:01:37.5]} 19... Nxb5
{[%clk 0:02:35.6]} 20. Nf4 {[%clk 0:01:37]} 20... Nc3 {[%clk 0:02:27.5]} 21.
Nxe6 {[%clk 0:01:30.2]} 21... Qxe6 {[%clk 0:02:27.7]} 22. Kh1 {[%clk 0:00:43.6]}
22... Ra2 {[%clk 0:02:24]} 23. Qc1 {[%clk 0:00:43.6]} 23... Qb3 {[%clk
0:02:22.3]} 24. Bg5 {[%clk 0:00:25.7]} 24... Bf8 {[%clk 0:02:14.6]} 25. e5
{[%clk 0:00:20.4]} 25... dxe5 {[%clk 0:02:12.7]} 26. f4 {[%clk 0:00:20.5]} 26...
e4 {[%clk 0:02:11.9]} 27. dxe4 {[%clk 0:00:18.6]} 27... Rc2 {[%clk 0:02:09.5]}
28. Qe1 {[%clk 0:00:16.9]} 28... Qb2 {[%clk 0:02:07.8]} 29. Bh3 {[%clk
0:00:16.4]} 29... Rxh2+ {[%clk 0:02:05.9]} 30. Kg1 {[%clk 0:00:16.9]} 30... Rxh3
{[%clk 0:02:06]} 0-1

[Event "*** Titled Tuesday Blitz"]
[Site "Chess.com"]
[Date "2020.11.24"]
[Round "6"]
[White "CookiesAndIceCream"]
[Black "cukin84"]
[Result "1-0"]
[WhiteElo "2422"]
[BlackElo "2144"]
[TimeControl "180+1"]
[EndTime "11:20:22 PST"]
[Termination "CookiesAndIceCream won by resignation"]

1. e4 {[%clk 0:03:00.9]} 1... c6 {[%clk 0:02:59.6]} 2. d4 {[%clk 0:02:58.3]}
2... d5 {[%clk 0:02:59.7]} 3. e5 {[%clk 0:02:58.4]} 3... c5 {[%clk 0:02:59.3]}
4. c4 {[%clk 0:02:57.8]} 4... dxc4 {[%clk 0:02:57.1]} 5. Nf3 {[%clk 0:02:57]}
5... cxd4 {[%clk 0:02:56.3]} 6. Nxd4 {[%clk 0:02:57.2]} 6... Nc6 {[%clk
0:02:51.4]} 7. Nxc6 {[%clk 0:02:54.1]} 7... Qxd1+ {[%clk 0:02:50.3]} 8. Kxd1
{[%clk 0:02:55]} 8... bxc6 {[%clk 0:02:50.6]} 9. Bxc4 {[%clk 0:02:55.5]} 9... e6
{[%clk 0:02:46.7]} 10. Nc3 {[%clk 0:02:51.9]} 10... Bb4 {[%clk 0:02:45]} 11. Bd2
{[%clk 0:02:42.5]} 11... Ne7 {[%clk 0:02:43.5]} 12. Ne4 {[%clk 0:02:40.4]} 12...
Bxd2 {[%clk 0:02:28.4]} 13. Nd6+ {[%clk 0:02:37.6]} 13... Kd7 {[%clk 0:02:28.1]}
14. Kxd2 {[%clk 0:02:35.9]} 14... f6 {[%clk 0:02:27.7]} 15. Rhe1 {[%clk
0:02:09.6]} 15... fxe5 {[%clk 0:02:25.6]} 16. Nf7 {[%clk 0:02:08.9]} 16... Rf8
{[%clk 0:02:15.4]} 17. Nxe5+ {[%clk 0:02:08.1]} 17... Kc7 {[%clk 0:02:15.4]} 18.
f3 {[%clk 0:02:03.7]} 18... Nd5 {[%clk 0:02:14.3]} 19. Rac1 {[%clk 0:01:57.8]}
19... Kd6 {[%clk 0:02:10.9]} 20. Bxd5 {[%clk 0:01:50.3]} 20... cxd5 {[%clk
0:02:09]} 21. Rc6+ {[%clk 0:01:50.1]} 21... Ke7 {[%clk 0:02:09.1]} 22. Rc7+
{[%clk 0:01:50.2]} 22... Kf6 {[%clk 0:02:05.5]} 23. h4 {[%clk 0:01:21.7]} 23...
h5 {[%clk 0:02:02.8]} 24. g4 {[%clk 0:01:17.9]} 24... g6 {[%clk 0:01:48.7]} 25.
g5+ {[%clk 0:01:03.3]} 25... Kf5 {[%clk 0:01:47.7]} 26. Nd3 {[%clk 0:01:02.7]}
1-0

[Event "*** Titled Tuesday Blitz"]
[Site "Chess.com"]
[Date "2020.11.24"]
[Round "6"]
[White "SameerMujumdar"]
[Black "Das_Virus_2020"]
[Result "0-1"]
[WhiteElo "2307"]
[BlackElo "2504"]
[TimeControl "180+1"]
[EndTime "11:20:24 PST"]
[Termination "Das_Virus_2020 won by resignation"]

1. d4 {[%clk 0:03:00.9]} 1... Nf6 {[%clk 0:02:57.6]} 2. c4 {[%clk 0:02:59.9]}
2... c5 {[%clk 0:02:57.7]} 3. Nf3 {[%clk 0:02:58.9]} 3... cxd4 {[%clk
0:02:55.6]} 4. Nxd4 {[%clk 0:02:59.8]} 4... b6 {[%clk 0:02:55.9]} 5. Nc3 {[%clk
0:02:59.4]} 5... Bb7 {[%clk 0:02:56.4]} 6. f3 {[%clk 0:02:55.1]} 6... d6 {[%clk
0:02:56.4]} 7. e4 {[%clk 0:02:54.8]} 7... Nbd7 {[%clk 0:02:56.9]} 8. Be3 {[%clk
0:02:55.3]} 8... a6 {[%clk 0:02:53.6]} 9. Qd2 {[%clk 0:02:55.7]} 9... e6 {[%clk
0:02:53.1]} 10. Be2 {[%clk 0:02:55.8]} 10... Rc8 {[%clk 0:02:52.3]} 11. O-O
{[%clk 0:02:56.4]} 11... h6 {[%clk 0:02:48.1]} 12. a4 {[%clk 0:02:53.9]} 12...
Ne5 {[%clk 0:02:40]} 13. b3 {[%clk 0:02:53.3]} 13... g5 {[%clk 0:02:39.3]} 14.
a5 {[%clk 0:02:26.8]} 14... bxa5 {[%clk 0:02:35.4]} 15. Na4 {[%clk 0:02:26.7]}
15... g4 {[%clk 0:02:13.4]} 16. Nc2 {[%clk 0:02:04.8]} 16... Rg8 {[%clk
0:01:56.1]} 17. Kh1 {[%clk 0:01:58.8]} 17... gxf3 {[%clk 0:01:49.4]} 18. gxf3
{[%clk 0:01:59.7]} 18... Nxe4 {[%clk 0:01:40.9]} 19. Qd4 {[%clk 0:01:47.1]}
19... Qh4 {[%clk 0:01:01.2]} 20. Rg1 {[%clk 0:01:37.9]} 20... Nf2+ {[%clk
0:00:41]} 21. Bxf2 {[%clk 0:01:34.2]} 21... Nxf3 {[%clk 0:00:40.5]} 0-1